bitfinex/quotes_SOLUSD_20250417
["timestamp","ask_amount","ask_price","bid_price","bid_amount"]
[1744903914446,26.44703037,132.34,132.3,30.67930858]
[1744903914649,26.44703037,132.34,132.31,30.67930858]
[1744903914848,26.44703037,132.34,132.32,30.67930858]
[1744903915346,26.44703037,132.34,132.31,30.67930858]
[1744903915824,7.55629439,132.34,132.33,30.67930858]
[1744903916346,7.55458185,132.37,132.33,30.67930858]
[1744903916647,7.55458185,132.37,132.36,30.67930858]
[1744903917727,26.43806557,132.39,132.35,30.67930858]
[1744903918332,57.11737415,132.39,132.34,30.67930858]
[1744903918542,30.67930858,132.38,132.33,30.67930858]
[1744903918746,30.67930858,132.38,132.34,30.67930858]
[1744903919748,26.44103648,132.37,132.33,30.67930858]
[1744903919946,26.44103648,132.37,132.32,26.0]
[1744903919947,30.67930858,132.36,132.31,56.67930858]
[1744903920456,30.67930858,132.35,132.31,30.67930858]
[1744903920643,30.67930858,132.34,132.29,73.69930858]
[1744903920829,30.67930858,132.35,132.31,30.67930858]
[1744903921032,26.44103648,132.37,132.34,30.67930858]
[1744903921236,7.55458185,132.37,132.36,30.67930858]
[1744903922052,7.55401117,132.38,132.36,30.67930858]
[1744903923251,7.55401117,132.38,132.37,30.67930858]
[1744903923742,18.8839368,132.39,132.37,30.67930858]
[1744903923743,7.55287009,132.4,132.37,30.67930858]
[1744903923951,7.55287009,132.4,132.39,30.67930858]
[1744903924159,7.55172934,132.42,132.39,30.67930858]
[1744903924451,30.67930858,132.46,132.37,38.23375289]
[1744903924452,26.42444814,132.46,132.41,30.67930858]
[1744903924664,7.54944889,132.46,132.44,30.67930858]
[1744903924839,7.54944889,132.46,132.45,30.67930858]
[1744903925045,7.54944889,132.46,132.44,30.67930858]
[1744903925229,7.54944889,132.46,132.45,30.67930858]
[1744903925431,7.54944889,132.46,132.43,30.67930858]
[1744903925730,26.42307111,132.46,132.44,30.67930858]
[1744903925933,7.54944889,132.46,132.45,30.67930858]
[1744903926150,7.54830917,132.48,132.45,30.67930858]
[1744903926339,7.54830917,132.48,132.47,30.67930858]
[1744903926757,7.54830917,132.48,132.43,0.28432314]
[1744903926958,7.54830917,132.48,132.45,30.67930858]
[1744903927453,7.54830917,132.48,132.43,0.28432314]
[1744903927454,7.54830917,132.48,132.46,30.67930858]
[1744903928137,10.24700669,132.49,132.47,30.67930858]
[1744903928650,10.24700669,132.49,132.45,30.67930858]
[1744903928840,29.11635532,132.49,132.46,30.67930858]
[1744903929044,10.24700669,132.49,132.47,30.67930858]
[1744903929755,10.24700669,132.49,132.48,30.67930858]
[1744903931638,10.24700669,132.49,132.47,30.67930858]
[1744903931871,10.24700669,132.49,132.48,30.67930858]
[1744903932763,2.6991695,132.49,132.48,30.67930858]
[1744903933645,2.6991695,132.49,132.48,30.96363172]
[1744903934435,18.64964886,132.48,132.4,7.5338]
[1744903934753,7.54944889,132.46,132.42,30.67930858]
[1744903934941,7.54944889,132.46,132.44,30.67930858]
[1744903935144,7.54830917,132.48,132.45,30.67930858]
[1744903935356,7.54830917,132.48,132.47,30.67930858]
[1744903935552,26.41908211,132.48,132.43,0.14216157]
[1744903935750,26.41908211,132.48,132.44,30.67930858]
[1744903936565,30.67930858,132.47,132.42,47.67930858]
[1744903936740,7.54944889,132.46,132.44,30.67930858]
[1744903936942,7.54944889,132.46,132.45,30.67930858]
[1744903937143,21.5687155,132.49,132.45,30.82147015]
[1744903937342,29.11645495,132.49,132.47,30.67930858]
[1744903938048,29.11645495,132.49,132.46,30.67930858]
[1744903938662,29.11645495,132.49,132.47,30.67930858]
[1744903940345,10.24690895,132.49,132.48,30.67930858]
[1744903941263,10.24690895,132.49,132.47,30.67930858]
[1744903942053,29.11625758,132.49,132.46,30.67930858]
[1744903942252,10.24690895,132.49,132.47,30.67930858]
[1744903944375,2.6991695,132.49,132.48,30.67930858]
[1744903944669,2.6991695,132.49,132.48,30.96363172]
[1744903945167,2.6991695,132.49,132.48,49.61328058]
[1744903945749,2.6991695,132.49,132.48,57.16158975]
[1744903946073,2.6991695,132.49,132.48,49.61328058]
[1744903946276,2.6991695,132.49,132.48,30.96363172]
[1744903946570,2.6991695,132.49,132.48,56.67930858]
[1744903947462,2.6991695,132.49,132.48,30.67930858]
[1744903948270,10.24690895,132.49,132.48,30.67930858]
[1744903948476,10.24690895,132.49,132.47,30.67930858]
[1744903949371,10.24690895,132.49,132.46,30.67930858]
[1744903949672,29.11625758,132.49,132.44,80.98432314]
[1744903949869,29.11625758,132.49,132.45,30.67930858]
[1744903950076,29.11625758,132.49,132.46,30.67930858]
[1744903950369,10.24690895,132.49,132.47,30.67930858]
[1744903950573,10.24690895,132.49,132.48,30.67930858]
[1744903950774,10.24690895,132.49,132.46,30.67930858]
[1744903951158,2.6991695,132.49,132.47,30.67930858]
[1744903951359,2.6991695,132.49,132.48,30.67930858]
[1744903952077,10.24690895,132.49,132.48,30.67930858]
[1744903955979,2.6991695,132.49,132.48,30.67930858]
[1744903957379,10.24690895,132.49,132.48,30.67930858]
[1744903957878,2.6991695,132.49,132.48,30.67930858]
[1744903961288,10.24690895,132.49,132.48,30.67930858]
[1744903961669,10.24690895,132.49,132.46,16.98]
[1744903961969,29.11625758,132.49,132.46,16.98]
[1744903962278,10.24690895,132.49,132.48,30.67930858]
[1744903963084,2.6991695,132.49,132.48,30.67930858]
[1744903963284,2.6991695,132.49,132.48,30.96363172]
[1744903963471,2.6991695,132.49,132.48,30.67930858]
[1744903964470,2.6991695,132.49,132.48,38.51194089]
[1744903965174,0.03,132.51,132.5,26.0]
[1744903965364,0.03,132.51,132.5,106.29258916]
[1744903965570,0.03,132.52,132.51,18.933972]
[1744903965871,0.03,132.53,132.52,0.28432314]
[1744903966271,0.03,132.53,132.52,25.11015948]
[1744903966490,7.57186128,132.6,132.54,33.5448921]
[1744903966785,7.57186128,132.6,132.54,64.22420068]
[1744903967589,7.57186128,132.6,132.54,56.67930858]
[1744903969195,26.4255566,132.6,132.54,56.96363172]
[1744903969376,30.67930858,132.59,132.54,56.67930858]
[1744903969577,30.67930858,132.59,132.54,30.67930858]
[1744903969776,30.67930858,132.58,132.54,30.67930858]
[1744903970082,57.10486518,132.6,132.54,30.67930858]
[1744903970271,30.67930858,132.59,132.54,30.67930858]
[1744903971496,26.39915521,132.58,132.52,26.0]
[1744903971671,26.39915521,132.58,132.54,30.67930858]
[1744903971871,30.67930858,132.57,132.53,30.67930858]
[1744903972073,30.67930858,132.57,132.52,56.67930858]
[1744903972275,30.67930858,132.57,132.53,30.67930858]
[1744903972591,94.79154268,132.58,132.53,30.67930858]
[1744903973592,64.1122341,132.58,132.54,30.67930858]
[1744903973786,26.39915521,132.58,132.54,30.67930858]
[1744903975691,7.54261577,132.58,132.54,30.67930858]
[1744903976803,0.03,132.6,132.57,26.0]
[1744903977007,0.03,132.6,132.59,30.67930858]
[1744903978603,0.03,132.6,132.57,43.26432314]
[1744903978905,0.03,132.6,132.59,30.67930858]
[1744903980484,0.03,132.6,132.57,16.98]
[1744903980688,0.03,132.6,132.57,47.65930858]
[1744903981808,0.03,132.6,132.57,16.98]
[1744903982009,26.42517344,132.6,132.57,16.98]
[1744903982297,26.42517344,132.6,132.56,30.67930858]
[1744903982502,32.20470858,132.59,132.55,30.67930858]
[1744903982686,38.78020858,132.59,132.54,30.67930858]
[1744903982893,8.1009,132.59,132.56,30.67930858]
[1744903983400,8.1009,132.59,132.55,30.67930858]
[1744903984301,7.54261577,132.58,132.57,30.67930858]
[1744903985618,18.88369532,132.6,132.59,26.0]
[1744903985619,0.03,132.6,132.59,26.0]
[1744903985820,0.03,132.6,132.59,73.92363172]
[1744903985991,0.03,132.61,132.59,92.57328058]
[1744903986197,0.03,132.61,132.6,30.67930858]
[1744903986898,7.53868533,132.65,132.61,0.28432314]
[1744903987207,0.03,132.66,132.64,30.67930858]
[1744903987408,0.03,132.66,132.65,30.67930858]
[1744903987783,6.77872295,132.69,132.65,30.67930858]
[1744903987982,7.53522718,132.71,132.68,30.67930858]
[1744903988203,7.53522718,132.71,132.69,30.67930858]
[1744903988708,26.37329514,132.71,132.67,30.67930858]
[1744903988888,26.37329514,132.71,132.68,30.67930858]
[1744903989508,18.83806796,132.71,132.65,26.0]
[1744903989694,18.83806796,132.71,132.68,30.67930858]
[1744903990087,18.83806796,132.71,132.64,16.96]
[1744903990315,49.51737654,132.71,132.67,30.67930858]
[1744903990514,18.83806796,132.71,132.67,30.67930858]
[1744903992016,57.05260372,132.71,132.67,30.67930858]
[1744903992707,26.37329514,132.71,132.67,30.67930858]
[1744903992912,26.37329514,132.71,132.68,30.67930858]
[1744903993910,26.37329514,132.71,132.67,30.67930858]
[1744903994112,30.67930858,132.7,132.65,30.67930858]
[1744903994314,49.32895744,132.67,132.59,235.12]
[1744903994517,30.67930858,132.66,132.59,252.06]
[1744903994814,30.67930858,132.65,132.61,30.67930858]
[1744903994998,30.67930858,132.62,132.59,16.94]
[1744903995205,30.67930858,132.63,132.59,30.67930858]
[1744903995510,30.67930858,132.63,132.58,30.67930858]
[1744903995701,18.64964886,132.64,132.57,30.67930858]
[1744903995702,30.67930858,132.62,132.57,30.67930858]
[1744903996097,57.07249159,132.61,132.56,30.67930858]
[1744903996695,26.39318301,132.61,132.58,30.67930858]
[1744903997000,7.54090943,132.61,132.6,30.67930858]
[1744903997395,7.53920386,132.64,132.6,30.67930858]
[1744903997613,7.53920386,132.64,132.63,30.67930858]
[1744903998001,18.8438689,132.67,132.63,30.67930858]
[1744903998196,18.8438689,132.67,132.65,30.67930858]
[1744903998403,7.53693096,132.68,132.66,30.67930858]
[1744903998612,7.53693096,132.68,132.67,30.67930858]
[1744903999415,7.53693096,132.68,132.66,30.67930858]
[1744904000010,37.49061329,132.69,132.61,26.0]
[1744904000315,68.16992187,132.69,132.64,30.67930858]
[1744904000816,30.67930858,132.67,132.63,30.67930858]
[1744904001127,30.67930858,132.66,132.62,30.67930858]
[1744904001323,127.64096443,132.69,132.61,30.67930858]
[1744904001324,18.64964886,132.64,132.61,30.67930858]
[1744904001525,18.64964886,132.61,132.57,16.94]
[1744904001700,30.67930858,132.58,132.52,16.94]
[1744904001895,7.54375377,132.56,132.52,16.94]
[1744904002131,7.54375377,132.56,132.53,30.67930858]
[1744904002821,7.54339017,132.57,132.55,30.67930858]
[1744904003006,7.54339017,132.57,132.56,30.67930858]
[1744904003412,7.54339017,132.57,132.55,30.67930858]
[1744904004298,57.07647276,132.59,132.54,30.67930858]
[1744904004801,57.07647276,132.59,132.52,42.94]
[1744904005006,57.07647276,132.59,132.54,30.67930858]
[1744904005216,57.07647276,132.59,132.55,30.67930858]
[1744904005420,26.39716418,132.59,132.56,30.67930858]
[1744904006208,26.39716418,132.59,132.55,30.67930858]
[1744904006713,26.39716418,132.59,132.54,30.67930858]
[1744904006714,57.07647276,132.59,132.54,30.67930858]
[1744904007125,57.07647276,132.59,132.55,30.67930858]
[1744904007511,57.07647276,132.59,132.54,30.67930858]
[1744904007711,30.67930858,132.57,132.53,30.67930858]
[1744904008130,30.67930858,132.57,132.52,47.61930858]
[1744904008339,26.40313819,132.56,132.52,47.61930858]
[1744904008643,26.40313819,132.56,132.53,30.67930858]
[1744904008817,7.54375377,132.56,132.54,30.67930858]
[1744904009130,7.54375377,132.56,132.55,30.67930858]
[1744904009505,7.54375377,132.56,132.54,30.67930858]
[1744904009722,7.54375377,132.56,132.55,30.67930858]
[1744904010503,18.85796783,132.57,132.52,42.94]
[1744904010730,18.85796783,132.57,132.53,30.67930858]
[1744904010929,30.67930858,132.55,132.49,0.063]
[1744904011128,30.67930858,132.54,132.49,30.74230858]
[1744904011320,18.64964886,132.53,132.49,30.74230858]
[1744904011834,18.64964886,132.53,132.5,30.67930858]
[1744904012038,18.64964886,132.53,132.49,30.74230858]
[1744904013044,7.54603078,132.52,132.49,30.74230858]
[1744904013413,7.54603078,132.52,132.51,30.67930858]
[1744904013745,7.5448921,132.54,132.51,30.67930858]
[1744904013908,7.5448921,132.54,132.53,30.67930858]
[1744904014333,7.54375377,132.56,132.53,30.67930858]
[1744904014633,7.54375377,132.56,132.55,30.67930858]
[1744904015034,7.54261577,132.58,132.55,30.67930858]
[1744904015334,7.54261577,132.58,132.56,30.67930858]
[1744904016712,26.39915521,132.58,132.55,30.67930858]
[1744904017828,26.39915521,132.58,132.54,30.67930858]
[1744904018139,7.54261577,132.58,132.56,30.67930858]
[1744904018328,7.54261577,132.58,132.57,30.67930858]
[1744904018832,7.54090943,132.61,132.57,30.67930858]
[1744904019008,7.54090943,132.61,132.59,30.67930858]
[1744904019213,26.3904494,132.63,132.6,30.67930858]
[1744904019430,26.3904494,132.63,132.59,30.67930858]
[1744904019638,57.06975798,132.63,132.59,30.67930858]
[1744904019813,49.32895744,132.62,132.57,30.67930858]
[1744904020140,30.67930858,132.61,132.56,30.67930858]
[1744904020939,26.39517344,132.6,132.56,30.67930858]
[1744904022730,26.39517344,132.6,132.55,26.0]
[1744904022930,26.39517344,132.6,132.56,30.67930858]
[1744904024418,26.39517344,132.6,132.57,30.67930858]
[1744904024740,7.54147812,132.6,132.59,30.67930858]
[1744904025125,7.54147812,132.6,132.58,30.67930858]
[1744904026316,7.54147812,132.6,132.55,26.0]
[1744904026516,26.39517344,132.6,132.55,26.0]
[1744904026838,26.39517344,132.6,132.56,30.67930858]
[1744904027042,7.54147812,132.6,132.59,30.67930858]
[1744904027216,7.54102723,132.61,132.59,30.67930858]
[1744904027419,7.54102723,132.61,132.6,30.67930858]
[1744904028322,18.85073343,132.63,132.6,30.67930858]
[1744904028721,18.85073343,132.63,132.62,30.67930858]
[1744904028917,7.53920386,132.64,132.62,30.67930858]
[1744904029228,7.53920386,132.64,132.6,30.67930858]
[1744904029229,26.38721351,132.64,132.6,30.67930858]
[1744904029412,26.38721351,132.64,132.61,30.67930858]
[1744904029618,7.53920386,132.64,132.63,30.67930858]
[1744904030415,18.84549357,132.66,132.62,30.67930858]
[1744904031038,18.84549357,132.66,132.63,30.67930858]
[1744904032220,7.53749905,132.67,132.63,30.67930858]
[1744904032664,26.38124669,132.67,132.63,30.67930858]
[1744904033147,49.32895744,132.66,132.61,30.67930858]
[1744904033353,26.38124669,132.67,132.63,30.67930858]
[1744904034235,26.38124669,132.67,132.65,30.67930858]
[1744904034525,26.38124669,132.67,132.64,30.67930858]
[1744904036127,26.38124669,132.67,132.61,26.0]
[1744904036128,7.53749905,132.67,132.65,30.67930858]
[1744904036322,7.53749905,132.67,132.66,30.67930858]
[1744904036558,7.53749905,132.67,132.65,30.67930858]
[1744904037767,7.53693096,132.68,132.65,30.67930858]
[1744904038868,7.53636295,132.69,132.65,30.67930858]
[1744904039049,7.53636295,132.69,132.67,30.67930858]
[1744904040567,7.53465943,132.72,132.68,30.67930858]
[1744904040936,26.37130801,132.72,132.68,30.67930858]
[1744904041473,7.53465943,132.72,132.69,30.67930858]
[1744904041656,7.53465943,132.72,132.7,30.67930858]
[1744904041967,120.31385523,132.74,132.71,30.67930858]
[1744904041968,7.53426766,132.73,132.71,30.67930858]
[1744904042266,0.03,132.74,132.71,30.67930858]
[1744904042771,0.03,132.74,132.73,30.67930858]
[1744904043135,0.03,132.74,132.7,30.67930858]
[1744904043761,0.03,132.74,132.71,30.67930858]
[1744904043938,0.03,132.74,132.7,30.67930858]
[1744904044141,0.03,132.74,132.71,30.67930858]
[1744904044357,0.03,132.74,132.67,44.5319]
[1744904044544,30.67930858,132.73,132.68,30.67930858]
[1744904045053,30.67930858,132.69,132.61,12.08328908]
[1744904045238,30.67930858,132.67,132.62,47.57930858]
[1744904045559,18.64964886,132.68,132.63,30.67930858]
[1744904045560,49.32895744,132.68,132.63,30.67930858]
[1744904045746,32.20060858,132.7,132.65,30.67930858]
[1744904046061,49.32895744,132.69,132.64,30.67930858]
[1744904046268,26.37925836,132.68,132.64,30.67930858]
[1744904046638,7.53693096,132.68,132.66,30.67930858]
[1744904047353,7.53579502,132.7,132.67,30.67930858]
[1744904047662,7.53579502,132.7,132.69,30.67930858]
[1744904047858,7.53579502,132.7,132.68,30.67930858]
[1744904048344,18.83914571,132.71,132.68,30.67930858]
[1744904049763,7.53465943,132.72,132.68,30.67930858]
[1744904049944,7.53465943,132.72,132.69,30.67930858]
[1744904050539,26.37130801,132.72,132.68,30.67930858]
[1744904050760,18.64964886,132.71,132.67,30.67930858]
[1744904050961,30.67930858,132.7,132.65,30.67930858]
[1744904051168,31.26281458,132.7,132.65,30.67930858]
[1744904051460,0.583506,132.7,132.68,30.67930858]
[1744904051765,0.583506,132.7,132.69,30.67930858]
[1744904052074,0.583506,132.7,132.65,26.0]
[1744904052243,0.583506,132.7,132.66,30.67930858]
[1744904052567,0.583506,132.7,132.62,16.963]
[1744904052568,57.0565789,132.69,132.62,16.963]
[1744904052739,49.32895744,132.68,132.64,30.67930858]
[1744904052943,18.64964886,132.68,132.64,30.67930858]
[1744904053160,49.32895744,132.68,132.62,16.963]
[1744904053363,49.32895744,132.65,132.62,16.963]
[1744904053661,30.67930858,132.64,132.62,0.063]
[1744904053853,49.32895744,132.65,132.62,0.063]
[1744904054056,30.67930858,132.66,132.62,30.74230858]
[1744904054251,18.64964886,132.66,132.62,30.74230858]
[1744904054445,26.38522426,132.65,132.62,30.74230858]
[1744904055370,7.5386355,132.65,132.64,30.67930858]
[1744904055565,7.5386355,132.65,132.63,30.67930858]
[1744904055765,7.5386355,132.65,132.64,30.67930858]
[1744904056364,26.37761547,132.69,132.64,30.67930858]
[1744904056559,26.37761547,132.69,132.66,30.67930858]
[1744904058575,26.37761547,132.69,132.65,30.67930858]
[1744904058884,57.05692405,132.69,132.64,30.67930858]
[1744904059051,49.32895744,132.67,132.63,16.9]
[1744904059245,82.8,132.68,132.64,30.67930858]
[1744904059246,113.47930858,132.68,132.64,30.67930858]
[1744904059448,82.8,132.68,132.65,30.67930858]
[1744904059851,82.8,132.68,132.66,30.67930858]
[1744904060288,26.37761547,132.69,132.66,30.67930858]
[1744904060474,7.53636295,132.69,132.66,30.67930858]
[1744904061477,57.0565789,132.69,132.65,30.67930858]
[1744904061853,57.0565789,132.69,132.64,30.67930858]
[1744904062052,57.0565789,132.69,132.65,30.67930858]
[1744904062265,26.37727032,132.69,132.65,30.67930858]
[1744904063459,26.37727032,132.69,132.66,30.67930858]
[1744904064071,26.37727032,132.69,132.65,30.67930858]
[1744904065978,26.37727032,132.69,132.66,30.67930858]
[1744904066359,26.96077632,132.69,132.65,30.67930858]
[1744904067362,26.96077632,132.69,132.66,30.67930858]
[1744904068081,26.96077632,132.69,132.65,30.67930858]
[1744904068662,30.67930858,132.67,132.63,16.9]
[1744904068883,30.67930858,132.66,132.63,16.9]
[1744904069071,49.32895744,132.65,132.62,0.063]
[1744904069380,38.21851244,132.64,132.62,0.063]
[1744904069587,7.53920386,132.64,132.62,0.063]
[1744904069770,7.53920386,132.64,132.63,30.67930858]
[1744904070081,7.53693096,132.68,132.63,30.67930858]
[1744904070379,8.12000723,132.69,132.67,30.67930858]
[1744904070561,8.12000723,132.69,132.68,30.67930858]
[1744904070961,8.12000723,132.69,132.67,30.67930858]
[1744904071854,8.12000723,132.69,132.64,18.4046]
[1744904072064,49.32895744,132.68,132.63,30.67930858]
[1744904072857,30.67930858,132.67,132.62,30.74230858]
[1744904073055,30.67930858,132.63,132.62,0.063]
[1744904073264,30.67930858,132.63,132.59,0.063]
[1744904073265,49.32895744,132.63,132.59,0.063]
[1744904073476,30.67930858,132.62,132.59,0.063]
[1744904073685,26.39187417,132.62,132.59,0.063]
[1744904073892,7.54034082,132.62,132.6,30.67930858]
[1744904074272,0.583506,132.69,132.62,6.1526]
[1744904074583,8.11986895,132.69,132.67,30.67930858]
[1744904074887,8.11986895,132.69,132.66,30.67930858]
[1744904075183,8.11986895,132.69,132.67,30.67930858]
[1744904075365,8.11986895,132.69,132.68,30.67930858]
[1744904075565,8.11986895,132.69,132.67,30.67930858]
[1744904076278,8.11986895,132.69,132.66,30.67930858]
[1744904076792,8.11986895,132.69,132.67,30.67930858]
[1744904077868,8.11986895,132.69,132.68,30.67930858]
[1744904078486,8.11986895,132.69,132.67,30.67930858]
[1744904079472,8.11986895,132.69,132.66,30.67930858]
[1744904080088,8.11986895,132.69,132.67,30.67930858]
[1744904081086,8.11986895,132.69,132.66,30.67930858]
[1744904081285,30.67930858,132.67,132.62,30.67930858]
[1744904081693,49.32895744,132.68,132.63,30.67930858]
[1744904082385,7.53749905,132.67,132.63,30.67930858]
[1744904082768,26.38124669,132.67,132.63,30.67930858]
[1744904082970,57.06055527,132.67,132.62,30.67930858]
[1744904083171,57.06055527,132.67,132.61,16.9]
[1744904083373,49.32895744,132.65,132.61,16.9]
[1744904083677,30.67930858,132.62,132.59,0.063]
[1744904084190,30.67930858,132.61,132.59,0.063]
[1744904084487,7.54034082,132.62,132.59,0.063]
[1744904084691,7.54034082,132.62,132.6,30.67930858]
[1744904084985,7.54005265,132.63,132.61,30.67930858]
[1744904085171,7.54005265,132.63,132.6,30.67930858]
[1744904085984,7.54005265,132.63,132.61,30.67930858]
[1744904086296,7.54005265,132.63,132.62,30.67930858]
[1744904086590,26.38841827,132.64,132.61,30.67930858]
[1744904086791,26.38841827,132.64,132.6,30.67930858]
[1744904087190,57.06772685,132.64,132.6,30.67930858]
[1744904087790,57.06772685,132.64,132.59,30.74230858]
[1744904087973,49.32895744,132.63,132.59,30.74230858]
[1744904088174,18.64964886,132.63,132.59,30.74230858]
[1744904088688,7.54034082,132.62,132.59,30.74230858]
[1744904088991,26.39119287,132.62,132.59,30.74230858]
[1744904089390,26.39119287,132.62,132.59,0.063]
[1744904090074,26.39119287,132.62,132.6,30.67930858]
[1744904090476,26.38721351,132.64,132.6,30.67930858]
[1744904090679,45.03686237,132.64,132.61,30.67930858]
[1744904090875,26.38721351,132.64,132.61,30.67930858]
[1744904091482,26.38721351,132.64,132.6,30.67930858]
[1744904092989,49.32895744,132.63,132.59,0.063]
[1744904093294,30.67930858,132.62,132.59,0.063]
[1744904093602,49.32895744,132.63,132.59,0.063]
[1744904093804,18.64964886,132.63,132.59,30.74230858]
[1744904094398,49.32895744,132.63,132.59,0.063]
[1744904094696,26.39119287,132.62,132.59,0.063]
[1744904094997,18.64964886,132.61,132.59,0.063]
[1744904095207,49.32895744,132.61,132.59,0.063]
[1744904095399,49.32895744,132.6,132.59,0.063]
[1744904095792,18.64964886,132.6,132.59,0.063]
[1744904096413,18.64964886,132.6,132.59,1e-08]
[1744904096414,132.12895744,132.6,132.59,1e-08]
[1744904096583,57.65996344,132.6,132.59,1e-08]
[1744904096786,65.20144156,132.6,132.59,1e-08]
[1744904097802,28.28523298,132.6,132.59,1e-08]
[1744904098185,28.56955612,132.6,132.59,1e-08]
[1744904098396,59.2488647,132.6,132.59,1e-08]
[1744904098591,58.96454156,132.6,132.59,1e-08]
[1744904098891,8.12498412,132.6,132.59,1e-08]
[1744904100483,0.583506,132.6,132.59,30.67930859]
[1744904100991,18.84552868,132.66,132.59,56.96363173]
[1744904101192,26.37960245,132.68,132.65,30.67930858]
[1744904101398,18.64964886,132.66,132.62,30.67930858]
[1744904101992,18.64964886,132.66,132.63,30.67930858]
[1744904102590,18.64964886,132.66,132.62,30.67930858]
[1744904103107,18.64964886,132.66,132.63,30.67930858]
[1744904103108,26.38522426,132.65,132.63,30.67930858]
[1744904103309,26.38522426,132.65,132.64,30.67930858]
[1744904103310,7.5386355,132.65,132.64,30.67930858]
[1744904103615,7.5386355,132.65,132.63,30.67930858]
[1744904104993,26.38158935,132.67,132.63,30.67930858]
[1744904105322,26.38158935,132.67,132.64,30.67930858]
[1744904106017,26.38158935,132.67,132.63,30.67930858]
[1744904106513,26.38158935,132.67,132.64,30.67930858]
[1744904107207,57.06089793,132.67,132.62,30.67930858]
[1744904107726,49.32895744,132.66,132.61,30.67930858]
[1744904107889,49.32895744,132.64,132.59,30.67930859]
[1744904108091,49.32895744,132.6,132.59,1e-08]
[1744904108604,18.64964886,132.58,132.56,1e-08]
[1744904108913,30.67930858,132.57,132.56,1e-08]
[1744904109215,7.54318473,132.57,132.56,1e-08]
[1744904109391,7.54318473,132.57,132.56,30.67930859]
[1744904110210,18.85239017,132.61,132.56,30.67930859]
[1744904110424,7.54034082,132.62,132.59,30.67930858]
[1744904110712,7.54034082,132.62,132.58,30.67930858]
[1744904111088,26.39119287,132.62,132.58,30.67930858]
[1744904111417,26.39119287,132.62,132.59,30.67930858]
[1744904111615,7.54034082,132.62,132.61,30.67930858]
[1744904111799,7.53920386,132.64,132.61,30.67930858]
[1744904112006,7.53920386,132.64,132.63,30.67930858]
[1744904112313,18.84233417,132.68,132.63,30.67930858]
[1744904112497,7.53749905,132.67,132.65,30.67930858]
[1744904112698,7.53749905,132.67,132.64,30.67930858]
[1744904113119,30.67930858,132.66,132.62,16.88]
[1744904113320,7.5386355,132.65,132.63,30.67930858]
[1744904113814,7.5386355,132.65,132.64,30.67930858]
[1744904114418,7.5386355,132.65,132.63,30.67930858]
[1744904115515,26.38431296,132.66,132.63,30.67930858]
[1744904115718,26.38431296,132.66,132.62,30.67930858]
[1744904116627,57.06362154,132.66,132.62,30.67930858]
[1744904118122,49.32895744,132.65,132.6,47.55930858]
[1744904118334,30.67930858,132.64,132.6,47.55930858]
[1744904118499,49.32895744,132.63,132.59,26.0]
[1744904118698,49.32895744,132.63,132.57,30.67930858]
[1744904118699,30.67930858,132.62,132.57,30.67930858]
[1744904118919,30.67930858,132.58,132.56,1e-08]
[1744904119911,49.32895744,132.57,132.56,1e-08]
[1744904120106,56.87214217,132.57,132.56,1e-08]
[1744904120729,26.19283359,132.57,132.56,1e-08]
[1744904121426,7.54318473,132.57,132.56,1e-08]
[1744904121638,7.54288743,132.58,132.56,30.67930859]
[1744904121926,7.54147812,132.6,132.57,30.67930858]
[1744904122131,7.53977229,132.63,132.59,30.67930858]
[1744904122312,26.38920303,132.63,132.6,30.67930858]
[1744904122712,26.38920303,132.63,132.59,30.67930858]
[1744904124007,57.06851161,132.63,132.59,30.67930858]
[1744904124206,49.32895744,132.62,132.58,30.67930858]
[1744904124421,30.67930858,132.6,132.56,30.67930859]
[1744904124627,101.44964886,132.62,132.56,1e-08]
[1744904124831,30.67930858,132.59,132.56,1e-08]
[1744904125207,18.64964886,132.59,132.56,1e-08]
[1744904125933,30.67930858,132.6,132.56,1e-08]
[1744904126135,18.64964886,132.61,132.58,30.67930858]
[1744904126338,7.54147812,132.6,132.58,30.67930858]
[1744904126505,26.39517344,132.6,132.57,30.67930858]
[1744904126709,18.64964886,132.59,132.56,30.67930859]
[1744904127618,18.64964886,132.59,132.56,1e-08]
[1744904128624,49.32895744,132.57,132.56,1e-08]
[1744904128821,49.32895744,132.57,132.55,1e-08]
[1744904129133,49.32895744,132.57,132.53,1e-08]
[1744904129134,49.32895744,132.56,132.53,1e-08]
[1744904129304,49.32895744,132.54,132.53,1e-08]
[1744904129505,101.44964886,132.53,132.5,0.063]
[1744904129726,18.64964886,132.51,132.5,0.063]
[1744904130034,49.32895744,132.51,132.5,0.063]
[1744904130218,113.47930858,132.53,132.5,0.063]
[1744904130418,18.64964886,132.52,132.5,0.063]
[1744904130623,7.54603078,132.52,132.5,0.063]
[1744904130820,30.67930858,132.56,132.51,30.67930858]
[1744904131030,7.54318473,132.57,132.54,30.67930858]
[1744904131732,7.54318473,132.57,132.55,30.67930858]